bitfinex-derivatives/quotes_SOLF0:USTF0_20250703
["timestamp","ask_amount","ask_price","bid_price","bid_amount"]
[1751548659688,6.5388,152.88,152.87,45.94]
[1751548663001,6.5402,152.85,152.83,192.06]
[1751548663588,7.187739,152.87,152.82,45.98]
[1751548663995,6.5405,152.84,152.82,45.98]
[1751548665000,7.187739,152.87,152.82,45.98]
[1751548666197,6.5408,152.84,152.82,45.98]
[1751548666503,2.2207,152.88,152.82,45.98]
[1751548666703,9.408439,152.88,152.82,45.98]
[1751548667006,7.187739,152.9,152.82,45.98]
[1751548667198,6.5399,152.86,152.82,52.5211]
[1751548667593,7.187739,152.9,152.82,45.98]
[1751548667799,7.187739,152.88,152.82,45.98]
[1751548668606,7.187739,152.86,152.82,45.98]
[1751548668809,7.187739,152.84,152.82,45.98]
[1751548669300,6.5409,152.83,152.82,45.98]
[1751548669999,6.5421,152.81,152.79,564.5]
[1751548670205,7.187739,152.84,152.79,564.5]
[1751548670708,6.542,152.81,152.79,564.5]
[1751548670907,7.187739,152.84,152.78,238.14]
[1751548671207,6.5424,152.8,152.78,238.14]
[1751548671908,7.187739,152.84,152.78,238.14]
[1751548672511,7.187739,152.84,152.78,244.683]
[1751548673009,7.187739,152.84,152.78,238.14]
[1751548673507,6.5416,152.82,152.78,244.6829]
[1751548673709,7.187739,152.84,152.78,238.14]
[1751548674008,6.542,152.81,152.78,238.14]
[1751548674405,6.5408,152.84,152.78,245.327739]
[1751548674600,4.5443,152.86,152.78,245.327739]
[1751548675610,2.3018,152.87,152.8,7.187739]
[1751548675905,2.3018,152.87,152.81,192.2]
[1751548676113,6.5401,152.85,152.82,6.541]
[1751548676811,6.5398,152.86,152.83,6.5409]
[1751548677411,7.187739,152.89,152.82,6.5411]
[1751548677412,6.5401,152.85,152.82,6.5411]
[1751548677606,6.5401,152.85,152.83,46.0]
[1751548678012,46.0,152.93,152.83,46.0]
[1751548678318,7.187739,152.87,152.83,46.0]
[1751548678503,7.187739,152.89,152.83,46.0]
[1751548678908,46.0,152.93,152.84,6.5403]
[1751548679111,7.187739,152.91,152.83,46.0]
[1751548679510,6.5396,152.87,152.83,46.0]
[1751548680406,7.187739,152.89,152.83,46.0]
[1751548681006,6.5401,152.85,152.83,46.0]
[1751548681411,7.187739,152.89,152.83,46.0]
[1751548681913,4.79241024,152.89,152.83,46.0]
[1751548682112,6.5399,152.86,152.83,52.5407]
[1751548682311,4.79241024,152.89,152.83,46.0]
[1751548683007,46.0,152.93,152.83,46.0]
[1751548683209,6.539,152.88,152.85,6.5398]
[1751548683410,4.79241024,152.9,152.83,46.0]
[1751548683916,6.539,152.88,152.85,6.54]
[1751548685114,6.5393,152.87,152.85,6.54]
[1751548685315,6.5393,152.87,152.84,6.5403]
[1751548687214,4.79241024,152.88,152.83,46.0]
[1751548687814,6.5399,152.86,152.83,52.5407]
[1751548688014,4.79241024,152.88,152.83,46.0]
[1751548688214,4.79241024,152.88,152.83,52.5409]
[1751548688416,4.79241024,152.88,152.83,46.0]
[1751548689013,6.54,152.86,152.83,52.5408]
[1751548689415,4.79241024,152.88,152.83,46.0]
[1751548690218,4.79241024,152.88,152.83,52.5408]
[1751548690516,4.79241024,152.88,152.83,46.0]
[1751548690816,6.5404,152.85,152.83,46.0]
[1751548691312,6.5405,152.84,152.83,46.0]
[1751548694018,4.79241024,152.84,152.79,46.0]
[1751548694217,4.79241024,152.81,152.79,46.0]
[1751548694807,11.33441024,152.81,152.79,46.0]
[1751548695320,6.542,152.81,152.79,52.5425]
[1751548695622,6.5422,152.8,152.79,46.0]
[1751548696318,4.79241024,152.81,152.75,46.0]
[1751548696516,4.79241024,152.79,152.75,238.2]
[1751548696919,4.79241024,152.79,152.75,244.7439]
[1751548697218,4.79241024,152.79,152.75,238.2]
[1751548697420,4.79241024,152.83,152.75,242.99241024]
[1751548697821,6.5422,152.81,152.75,242.99241024]
[1751548698019,6.5422,152.81,152.78,6.5428]
[1751548698215,4.79241024,152.83,152.78,198.7628]
[1751548698411,4.79241024,152.83,152.78,192.22]
[1751548699321,6.5424,152.8,152.78,192.22]
[1751548699521,4.79241024,152.83,152.78,192.22]
[1751548699923,6.5421,152.81,152.78,198.7627]
[1751548700418,4.79241024,152.83,152.78,198.7627]
[1751548700622,6.5424,152.8,152.78,192.22]
[1751548701022,6.5419,152.81,152.78,198.7627]
[1751548701323,4.79241024,152.83,152.78,192.22]
[1751548701522,6.5416,152.82,152.79,6.5426]
[1751548701728,4.79241024,152.83,152.79,6.5426]
[1751548702027,6.5414,152.82,152.79,6.5426]
[1751548702223,6.5414,152.82,152.8,6.542]
[1751548702427,6.5414,152.82,152.78,192.22]
[1751548702824,6.5414,152.82,152.79,6.5422]
[1751548703024,6.5414,152.82,152.78,192.22]
[1751548703224,10.62850336,152.89,152.81,4.79241024]
[1751548703423,4.79241024,152.88,152.81,4.79241024]
[1751548704428,4.79241024,152.88,152.82,6.5413]
[1751548705331,6.5405,152.84,152.82,6.5413]
[1751548705532,4.79241024,152.86,152.8,46.0]
[1751548705730,5.96860336,152.88,152.8,46.0]
[1751548705731,6.5412,152.83,152.8,46.0]
[1751548706132,4.79241024,152.84,152.8,46.0]
[1751548706432,6.5418,152.81,152.8,46.0]
[1751548706628,4.79241024,152.84,152.8,46.0]
[1751548706825,4.79241024,152.84,152.78,192.22]
[1751548707232,6.5417,152.82,152.78,192.22]
[1751548708133,6.5417,152.82,152.79,6.5424]
[1751548708527,4.79241024,152.84,152.78,192.22]
[1751548708833,4.79241024,152.86,152.79,4.79241024]
[1751548709134,6.5404,152.85,152.82,6.5411]
[1751548709829,4.79241024,152.86,152.82,6.5411]
[1751548710033,6.5405,152.84,152.82,6.5411]
[1751548710233,4.79241024,152.86,152.81,6.5417]
[1751548710434,6.5409,152.84,152.81,6.5417]
[1751548710635,6.5409,152.84,152.82,6.5411]
[1751548711033,4.79241024,152.86,152.79,4.79241024]
[1751548711034,6.5402,152.85,152.79,4.79241024]
[1751548711231,5.96860336,152.89,152.81,4.79241024]
[1751548711438,5.96860336,152.92,152.85,4.79241024]
[1751548711626,6.538,152.9,152.85,4.79241024]
[1751548712531,2.1649,152.93,152.87,4.79241024]
[1751548712936,6.5377,152.91,152.88,6.5386]
[1751548713127,6.95731024,152.93,152.85,4.79241024]
[1751548713939,6.5381,152.9,152.87,6.539]
[1751548716235,6.5384,152.89,152.87,6.539]
[1751548716736,4.79241024,152.89,152.82,46.0]
[1751548716932,4.79241024,152.86,152.82,46.0]
[1751548717238,4.79241024,152.86,152.83,6.5406]
[1751548717431,4.79241024,152.86,152.82,46.0]
[1751548717829,6.5403,152.85,152.82,52.5412]
[1751548718233,6.5397,152.86,152.83,6.5405]
[1751548718439,4.79241024,152.87,152.82,46.0]
[1751548718740,6.5403,152.85,152.82,52.5411]
[1751548718939,4.79241024,152.85,152.82,46.0]
[1751548719540,6.5408,152.84,152.82,46.0]
[1751548719932,4.79241024,152.85,152.82,46.0]
[1751548720137,11.33261024,152.85,152.83,6.5409]
[1751548720338,11.33261024,152.85,152.82,46.0]
[1751548720538,4.79241024,152.85,152.82,46.0]
[1751548720941,4.79241024,152.86,152.82,52.5412]
[1751548721645,6.5404,152.85,152.82,52.5412]
[1751548723040,6.5405,152.84,152.82,52.5412]
[1751548723745,6.5405,152.84,152.82,46.0]
[1751548724344,6.5405,152.84,152.82,52.5413]
[1751548725841,4.79241024,152.86,152.82,52.5413]
[1751548726048,6.5402,152.85,152.82,46.0]
[1751548726348,4.79241024,152.86,152.82,46.0]
[1751548726539,6.5401,152.85,152.82,52.5412]
[1751548726949,4.79241024,152.86,152.82,52.5412]
[1751548727146,4.6295,152.89,152.82,46.0]
[1751548727147,4.79241024,152.84,152.82,46.0]
[1751548727347,4.79241024,152.84,152.78,45.98]
[1751548727547,4.79241024,152.84,152.78,238.16]
[1751548727747,4.79241024,152.82,152.78,45.98]
[1751548728447,4.79241024,152.82,152.79,6.5424]
[1751548729550,6.5418,152.81,152.79,6.5424]
[1751548730247,6.5418,152.81,152.78,52.5227]
[1751548730451,6.5423,152.8,152.78,45.98]
[1751548730947,4.79241024,152.82,152.78,45.98]
[1751548731251,6.5419,152.81,152.78,45.98]
[1751548731444,4.79241024,152.82,152.79,6.5424]
[1751548731643,6.5418,152.81,152.79,6.5424]
[1751548732045,6.5416,152.82,152.79,6.5424]
[1751548732249,2.2749,152.87,152.78,45.98]
[1751548732449,4.79241024,152.85,152.78,45.98]
[1751548732653,6.5409,152.84,152.78,45.98]
[1751548732951,4.79241024,152.85,152.79,4.79241024]
[1751548733152,6.5409,152.83,152.79,4.79241024]
[1751548733352,6.5409,152.83,152.78,45.98]
[1751548733549,6.5409,152.83,152.78,50.77241024]
[1751548734051,6.5409,152.84,152.81,6.5415]
[1751548734451,4.79241024,152.85,152.81,6.5415]
[1751548734653,6.5407,152.84,152.81,6.5415]
[1751548735455,6.541,152.83,152.81,6.5415]
[1751548736055,6.5407,152.84,152.82,6.5412]
[1751548736357,6.5407,152.84,152.78,50.77241024]
[1751548736558,4.79241024,152.85,152.78,50.77241024]
[1751548736750,6.5411,152.83,152.81,6.5416]
[1751548738663,6.5414,152.82,152.8,6.542]
[1751548738864,4.79241024,152.85,152.8,6.542]
[1751548739264,6.5411,152.83,152.81,6.5418]
[1751548739762,6.5411,152.83,152.78,50.77241024]
[1751548740463,6.5414,152.82,152.8,6.542]
[1751548741258,6.5414,152.82,152.78,50.77241024]
[1751548741464,4.79241024,152.83,152.78,45.98]
[1751548741963,6.5415,152.82,152.79,6.5424]
[1751548742163,4.79241024,152.85,152.78,50.77241024]
[1751548742560,7.06731024,152.87,152.8,4.79241024]
[1751548743064,7.06731024,152.87,152.81,6.5414]
[1751548743364,7.06731024,152.87,152.8,4.79241024]
[1751548743566,6.5408,152.84,152.82,6.5411]
[1751548743864,4.79241024,152.86,152.8,4.79241024]
[1751548744066,6.5411,152.83,152.81,6.5417]
[1751548744863,6.5406,152.84,152.82,6.5413]
[1751548745164,4.79241024,152.86,152.78,50.77241024]
[1751548745866,6.5406,152.84,152.81,6.5415]
[1751548746165,4.79241024,152.86,152.81,6.5415]
[1751548746768,6.5411,152.83,152.81,6.5415]
[1751548748361,4.79241024,152.84,152.78,4.79241024]
[1751548748566,4.79241024,152.82,152.77,45.98]
[1751548748969,6.5426,152.8,152.78,6.5429]
[1751548749163,4.79241024,152.82,152.77,45.98]
[1751548749364,4.79241024,152.82,152.77,52.5232]
[1751548749565,4.79241024,152.82,152.77,45.98]
[1751548750569,6.5424,152.8,152.78,6.5428]
[1751548750769,4.79241024,152.82,152.77,45.98]
[1751548751065,6.5424,152.8,152.78,6.5428]
[1751548755673,4.29199018,152.85,152.78,4.79241024]
[1751548755870,4.79241024,152.85,152.78,4.79241024]
[1751548756070,4.79241024,152.85,152.78,196.97241024]
[1751548756275,6.5409,152.83,152.78,196.97241024]
[1751548757374,6.5409,152.83,152.8,6.5419]
[1751548757576,4.79241024,152.85,152.78,196.97241024]
[1751548758576,4.79241024,152.85,152.79,6.5423]
[1751548758777,4.79241024,152.85,152.78,192.18]
[1751548759178,6.5418,152.81,152.79,6.5424]
[1751548760073,6.541,152.83,152.78,192.18]
[1751548760274,4.79241024,152.86,152.79,4.79241024]
[1751548760473,4.79241024,152.84,152.78,192.18]
[1751548760669,6.5416,152.82,152.79,6.5424]
[1751548761075,4.79241024,152.84,152.79,6.5424]
[1751548761675,6.5417,152.82,152.79,6.5424]
[1751548762578,6.5417,152.82,152.8,6.5421]
[1751548763280,4.79241024,152.84,152.77,242.93241024]
[1751548763882,6.5421,152.81,152.78,6.5427]
[1751548764182,4.79241024,152.84,152.77,50.77241024]
[1751548764383,4.79241024,152.82,152.77,45.98]
[1751548764981,6.5428,152.79,152.77,52.5234]
[1751548766285,6.5428,152.79,152.77,45.98]
[1751548766884,6.5428,152.79,152.77,52.5234]
[1751548768684,6.5423,152.8,152.77,52.5234]
[1751548768884,4.79241024,152.82,152.77,52.5234]
[1751548769284,6.5425,152.8,152.77,52.5234]
[1751548769682,4.79241024,152.82,152.77,52.5234]
[1751548769879,6.5426,152.8,152.77,52.5234]
[1751548770181,4.79241024,152.82,152.77,52.5234]
[1751548770881,6.5429,152.79,152.77,45.98]
[1751548771688,6.543,152.78,152.77,45.98]
[1751548771884,4.79241024,152.8,152.73,238.1]
[1751548772183,4.79241024,152.8,152.73,45.96]
[1751548772383,6.5433,152.78,152.75,6.544]
[1751548772984,6.5436,152.77,152.75,6.544]
[1751548773378,4.79241024,152.76,152.69,61.12569256]
[1751548773577,4.79241024,152.78,152.71,4.79241024]
[1751548773785,8.29547654,152.81,152.7,192.14]
[1751548773786,9.15768787,152.8,152.73,4.79241024]
[1751548773982,6.5431,152.78,152.73,4.79241024]
[1751548775185,6.5431,152.78,152.75,6.5441]
[1751548775678,6.5436,152.77,152.74,6.5445]
[1751548775985,4.79241024,152.79,152.71,4.79241024]
[1751548776584,6.544,152.76,152.73,6.5449]
[1751548777176,6.5444,152.75,152.72,6.5456]
[1751548777379,4.79241024,152.75,152.7,192.16]
[1751548777581,6.5451,152.74,152.7,192.16]
[1751548777879,4.79241024,152.73,152.69,45.98]
[1751548778078,6.5459,152.72,152.69,6.5466]
[1751548778282,4.79241024,152.75,152.68,4.79241024]
[1751548778684,2.3775,152.75,152.7,4.79241024]
[1751548778882,4.3046,152.77,152.7,4.79241024]
[1751548779081,4.3046,152.77,152.7,50.77241024]
[1751548779293,4.3046,152.77,152.71,4.79241024]
[1751548779683,4.3046,152.77,152.72,6.5454]
[1751548780285,4.3046,152.77,152.7,50.77241024]
[1751548781289,4.3046,152.77,152.72,6.5455]
[1751548781290,6.5444,152.75,152.72,6.5455]
[1751548781984,6.5444,152.75,152.73,6.5451]
[1751548782388,6.544,152.76,152.73,6.5451]
[1751548782588,4.3046,152.77,152.73,6.5451]
[1751548782888,6.5447,152.75,152.72,6.5454]
[1751548784086,2.3775,152.8,152.74,4.79241024]
[1751548784487,6.5433,152.78,152.75,6.5442]
[1751548784687,6.5433,152.78,152.74,4.79241024]
[1751548784887,2.3775,152.8,152.77,6.5435]
[1751548785190,2.3775,152.8,152.74,4.79241024]
[1751548785592,6.5428,152.79,152.74,4.79241024]
[1751548785992,6.5428,152.79,152.76,6.5437]
[1751548786290,2.3775,152.8,152.76,6.5437]
[1751548786695,6.5429,152.79,152.76,6.5437]
[1751548788093,2.3775,152.8,152.72,4.79241024]
[1751548788297,2.3775,152.8,152.72,196.95241024]
[1751548788592,6.5432,152.78,152.74,6.5444]
[1751548788791,2.3775,152.8,152.74,6.5444]
[1751548788990,2.3775,152.8,152.72,196.95241024]
[1751548789190,6.5428,152.79,152.74,4.79241024]
[1751548789595,6.5428,152.79,152.76,6.5437]
[1751548790183,6.5431,152.78,152.76,6.5437]
[1751548790789,6.5428,152.79,152.76,6.5437]
[1751548791295,2.3775,152.8,152.76,6.5437]
[1751548791492,6.5427,152.79,152.76,6.5437]
[1751548793198,6.5433,152.78,152.75,52.5241]
[1751548793393,2.3775,152.8,152.75,52.5241]
[1751548794091,6.5434,152.78,152.75,52.5241]
[1751548794594,6.5434,152.78,152.76,6.5439]
[1751548794799,6.5428,152.79,152.75,45.98]
[1751548795497,6.5428,152.79,152.76,6.5437]
[1751548796495,6.543,152.78,152.75,52.5241]
[1751548796690,2.3775,152.8,152.75,52.5241]
[1751548796991,6.5439,152.76,152.75,45.98]
[1751548797196,4.79241024,152.79,152.75,45.98]
[1751548797596,6.5437,152.77,152.75,45.98]
[1751548798594,6.5435,152.77,152.75,52.5241]
[1751548799192,6.5435,152.77,152.75,45.98]
[1751548800501,6.5435,152.77,152.75,52.5243]
[1751548801799,2.3775,152.8,152.76,6.5439]
[1751548802101,2.3775,152.8,152.75,45.98]
[1751548802305,6.5429,152.79,152.76,6.5435]
[1751548802499,2.3775,152.8,152.75,50.77241024]
[1751548803102,2.3775,152.8,152.75,45.98]
[1751548803103,4.79241024,152.79,152.75,45.98]
[1751548803697,6.5431,152.78,152.75,52.5241]
[1751548806295,6.5439,152.76,152.75,45.98]
[1751548806497,4.79241024,152.77,152.71,238.08]
[1751548806699,6.5439,152.76,152.73,6.5451]
[1751548806897,6.5439,152.76,152.71,238.08]
[1751548807295,6.5439,152.76,152.73,6.5449]
[1751548808500,6.5442,152.76,152.73,6.5449]
[1751548809098,6.5443,152.75,152.73,6.5449]
[1751548809499,2.3775,152.8,152.73,6.5449]
[1751548809695,6.544,152.76,152.71,242.87241024]
[1751548810104,6.544,152.76,152.73,6.545]
[1751548811604,6.5438,152.77,152.74,6.5447]
[1751548811802,4.79241024,152.78,152.74,6.5447]
[1751548812105,4.79241024,152.78,152.73,6.5449]
[1751548812106,6.5441,152.76,152.73,6.5449]
[1751548812301,4.79241024,152.78,152.72,192.1]
[1751548812605,6.5442,152.76,152.73,6.5449]
[1751548813205,6.5444,152.75,152.73,6.5449]
[1751548814211,6.5442,152.76,152.73,6.5449]
[1751548816805,4.79241024,152.76,152.71,45.96]
[1751548817405,6.5451,152.74,152.71,52.5058]
[1751548818011,4.79241024,152.76,152.71,52.5058]
[1751548818513,6.545,152.74,152.71,52.5058]
[1751548819110,6.5453,152.73,152.71,52.5058]
[1751548819303,4.37041902,152.78,152.67,54.10058232]
[1751548819512,4.79241024,152.73,152.68,192.1]
[1751548819706,2.1625,152.75,152.68,192.1]
[1751548819906,4.79241024,152.74,152.67,50.75241024]
[1751548820108,4.79241024,152.74,152.68,192.1]
[1751548820711,6.5454,152.73,152.68,192.1]
[1751548821214,6.5454,152.73,152.7,6.5461]
[1751548822111,4.79241024,152.74,152.68,192.1]
[1751548822710,6.5455,152.73,152.71,6.546]
[1751548823817,6.5455,152.73,152.7,6.5463]
[1751548825417,6.5456,152.72,152.7,6.5463]
[1751548825620,4.79241024,152.74,152.69,6.5467]
[1751548825916,7.00021024,152.74,152.68,192.1]
[1751548826221,7.00021024,152.74,152.7,6.5463]
[1751548826819,6.5454,152.73,152.7,6.5463]
[1751548828420,13.54521024,152.74,152.68,192.1]
[1751548828619,13.54521024,152.74,152.68,196.89241024]
[1751548828820,7.00021024,152.74,152.71,6.5458]
[1751548830129,6.5455,152.73,152.7,6.5463]
[1751548831222,6.5455,152.73,152.71,6.546]
[1751548831730,8.7529,152.74,152.72,6.5456]
[1751548831924,2.2078,152.74,152.72,6.5456]
[1751548832131,2.2078,152.74,152.68,196.89241024]
[1751548833119,8.7529,152.74,152.71,6.5458]
[1751548833318,2.2078,152.74,152.71,6.5458]
[1751548833522,2.2078,152.74,152.68,196.89241024]
[1751548833721,6.5454,152.73,152.7,6.5461]
[1751548833919,6.5454,152.73,152.68,196.89241024]
[1751548834317,6.5454,152.73,152.71,6.5458]
[1751548834517,8.7528,152.74,152.71,6.5458]
[1751548835030,8.7528,152.74,152.72,6.5456]
[1751548835327,6.5444,152.75,152.7,4.79241024]
[1751548836332,6.5441,152.76,152.73,6.5451]
[1751548837232,9.30671024,152.79,152.73,6.5451]
[1751548837731,9.30671024,152.79,152.7,4.79241024]
[1751548837732,4.79241024,152.77,152.68,194.4696]
[1751548837927,4.5143,152.79,152.68,194.4696]
[1751548837928,4.79241024,152.75,152.68,199.26201024]
[1751548838324,6.5451,152.74,152.68,199.26201024]
[1751548838930,4.5143,152.79,152.72,4.79241024]
[1751548839133,2.2674,152.79,152.74,4.79241024]
[1751548839333,6.04160123,152.83,152.78,4.79241024]
[1751548839533,12.98151147,152.86,152.78,4.79241024]
[1751548839737,6.93991024,152.86,152.8,4.79241024]
[1751548840034,2.2051,152.88,152.82,4.79241024]
[1751548840534,2.2051,152.88,152.83,6.5406]
[1751548840835,2.2051,152.88,152.82,50.73241024]
[1751548841024,2.2051,152.88,152.84,6.5402]
[1751548841536,8.744,152.88,152.82,50.73241024]
[1751548841929,209.32154516,152.9,152.82,50.73241024]
[1751548842325,209.32154516,152.9,152.84,4.79241024]
[1751548842835,6.5384,152.89,152.86,6.5396]
[1751548843933,8.24670123,152.93,152.86,4.79241024]
[1751548844135,6.99751024,152.93,152.86,4.79241024]
[1751548844637,6.5372,152.92,152.88,6.5387]
[1751548845234,6.5372,152.92,152.87,45.92]
[1751548845235,4.79241024,152.91,152.87,52.459]
[1751548845936,11.33011024,152.91,152.87,52.459]
[1751548846237,4.79241024,152.91,152.87,45.92]
[1751548846630,4.79241024,152.91,152.88,6.5385]
[1751548847532,11.32991024,152.91,152.88,6.5385]
[1751548847830,4.79241024,152.91,152.88,6.5385]
[1751548850440,11.32981024,152.92,152.89,6.5383]
[1751548850627,2.2051,152.93,152.87,45.92]
[1751548850834,4.79241024,152.88,152.81,565.46]
[1751548851136,4.79241024,152.86,152.84,6.5404]
[1751548851434,4.79241024,152.88,152.82,45.9]
[1751548851636,6.5399,152.86,152.82,52.4412]
[1751548851837,4.79241024,152.88,152.82,45.9]
[1751548852229,4.79241024,152.86,152.83,6.5409]
[1751548852840,11.33211024,152.86,152.82,52.4412]
[1751548853540,6.5401,152.85,152.82,45.9]
[1751548853940,6.5407,152.84,152.82,45.9]
[1751548855546,6.5402,152.85,152.82,45.9]
[1751548855842,4.79241024,152.86,152.82,45.9]
[1751548856142,4.79241024,152.86,152.82,52.4412]
[1751548856540,6.5403,152.85,152.82,52.4412]
[1751548856740,4.79241024,152.86,152.82,45.9]
[1751548857036,4.79241024,152.84,152.82,45.9]
[1751548857842,11.33311024,152.84,152.82,45.9]
[1751548858339,7.0387,152.87,152.82,52.4412]
[1751548858642,4.79241024,152.86,152.82,52.4412]
[1751548859044,6.5406,152.84,152.82,52.4412]
[1751548859343,4.79241024,152.86,152.82,52.4412]
[1751548859542,6.5403,152.85,152.82,52.4412]
[1751548859744,4.79241024,152.86,152.82,52.4412]
[1751548860444,6.5401,152.85,152.82,52.4412]
[1751548860642,4.79241024,152.86,152.82,52.4412]
[1751548860846,6.5404,152.85,152.82,52.4412]
[1751548861240,6.5404,152.85,152.82,45.9]
[1751548861440,6.5405,152.84,152.82,45.9]
[1751548862545,6.5405,152.84,152.82,52.4411]
[1751548864749,4.79241024,152.86,152.83,6.5409]
[1751548865647,6.5402,152.85,152.82,52.4411]
[1751548867052,6.5402,152.85,152.83,6.5408]
[1751548867553,6.5402,152.85,152.82,52.4412]
[1751548868548,13.0742,152.92,152.82,52.4412]
[1751548868549,4.79241024,152.88,152.82,45.9]
[1751548868852,4.79241024,152.9,152.82,50.69241024]
[1751548869056,6.5386,152.89,152.86,6.5394]
[1751548869249,4.79241024,152.9,152.84,4.79241024]
[1751548869648,6.5388,152.88,152.85,6.5398]
[1751548870248,6.5388,152.88,152.86,6.5396]
[1751548870451,6.5388,152.88,152.84,4.79241024]
[1751548870951,6.5388,152.88,152.85,6.5398]
[1751548871253,4.79241024,152.9,152.82,45.9]
[1751548871445,4.79241024,152.88,152.83,6.5407]
[1751548871948,6.5398,152.86,152.84,6.5404]
[1751548874758,6.5398,152.86,152.83,6.5407]
[1751548875657,6.5398,152.86,152.82,45.9]
[1751548875658,6.5398,152.86,152.84,6.5404]
[1751548875858,6.5398,152.86,152.82,45.9]
[1751548876053,6.5398,152.86,152.83,6.5406]
[1751548876858,6.5398,152.86,152.84,6.5404]
[1751548877758,6.5398,152.86,152.83,6.5407]
[1751548878158,4.79241024,152.88,152.83,6.5407]
[1751548878159,6.5401,152.85,152.83,6.5407]
[1751548878358,4.79241024,152.86,152.82,45.9]
[1751548878660,4.79241024,152.84,152.78,45.86]
[1751548878853,4.79241024,152.82,152.78,45.86]
[1751548879052,11.33411024,152.82,152.78,45.86]
[1751548879255,4.79241024,152.82,152.78,45.86]
[1751548880059,4.79241024,152.82,152.78,52.4028]
[1751548880252,6.542,152.81,152.78,52.4028]
[1751548880661,4.79241024,152.82,152.78,52.4028]
[1751548881257,6.5424,152.8,152.78,45.86]
[1751548882060,6.5424,152.8,152.78,52.403]
[1751548882559,6.542,152.81,152.78,52.403]
[1751548883064,6.5424,152.8,152.78,52.403]
[1751548883958,6.5419,152.81,152.78,52.403]
[1751548884456,6.5423,152.8,152.78,52.403]
[1751548886154,6.542,152.81,152.78,52.403]
[1751548886463,6.542,152.81,152.78,45.86]
[1751548886969,6.542,152.81,152.78,52.4028]
[1751548889064,6.5423,152.8,152.78,45.86]
[1751548889263,4.79241024,152.82,152.78,45.86]
[1751548889764,6.5418,152.81,152.78,52.403]
[1751548890062,4.79241024,152.82,152.78,52.403]
[1751548890262,6.5424,152.8,152.78,52.403]
[1751548890463,6.5424,152.8,152.78,45.86]
[1751548891066,6.5424,152.8,152.78,52.4027]
[1751548891865,6.542,152.81,152.78,52.4027]
[1751548892465,6.5423,152.8,152.78,52.4027]
[1751548894369,6.542,152.81,152.79,6.5426]
[1751548895869,6.5423,152.8,152.78,52.4029]
[1751548901669,11.33451024,152.81,152.78,52.4029]
[1751548901970,6.5421,152.81,152.78,52.4029]
[1751548902172,6.5421,152.81,152.79,6.5425]
[1751548902471,6.5422,152.8,152.78,45.86]
[1751548904172,6.5422,152.8,152.78,52.4028]
[1751548907272,6.542,152.81,152.79,6.5426]
[1751548908875,11.33391024,152.82,152.8,6.5422]
[1751548909076,2.1949,152.85,152.78,50.65241024]
[1751548909271,8.7353,152.85,152.82,6.5411]
[1751548909783,2.1949,152.85,152.82,6.5411]
[1751548910577,6.5406,152.84,152.82,6.5411]
[1751548911775,2.1949,152.85,152.8,191.68]
[1751548911973,4.79241024,152.83,152.8,191.68]
[1751548912578,11.33371024,152.83,152.8,198.222]
[1751548912878,6.98731024,152.85,152.78,237.52]
[1751548913574,6.5407,152.84,152.81,6.5415]
[1751548913781,6.98731024,152.85,152.79,4.79241024]
[1751548914083,213.58255455,152.89,152.79,4.79241024]
[1751548914281,4.79241024,152.87,152.79,4.79241024]
[1751548914483,6.5401,152.85,152.82,6.5411]
[1751548915084,6.5401,152.85,152.79,4.79241024]
[1751548915778,4.79241024,152.87,152.79,4.79241024]
[1751548915978,4.16409232,152.88,152.81,4.79241024]
[1751548916181,214.67056356,152.89,152.81,4.79241024]